Cogmind - Beta 16 @@@ ROGUE MODE // 2025.11.21 @ 19:59:08 Player: Selene Result: Destroyed by D-53 Grenadier with Mini Grenade Launcher Performance ------------- Evolutions (0) 0 Regions Visited (2) 400 Robots Destroyed (16) 80 Value Destroyed (182) 182 Prototype IDs (2) 40 Alien Tech Used (0) 0 Bonus (0) 0 TOTAL SCORE: 702 Bonus ------- None Cogmind --------- Core Integrity 0/250 Matter 150/300 Energy 250/250 System Corruption 0% Temperature Cool (0) Movement Treading (240) Ox1 Location -10/Mines Parts ------- > --- POWER (1) -------- Ion Engine > --- PROPULSION (2) --- Light Treads Wheel > --- UTILITY (2) ------ Large Storage Unit Propulsion Shielding > --- WEAPON (2) ------- Assault Rifle > --- INVENTORY (15) --- Light Ion Engine Light Nuclear Core Light Treads Light Treads Improved Heat Sink Huge Storage Unit Sensor Array Seismic Detector Utility Shielding EM Shotgun Assault Rifle Assault Rifle Improved Light Cannon Improved Light Cannon Grenade Launcher Peak State ------------ > --- POWER ------------ Ion Engine > --- PROPULSION ------- Light Treads Light Treads > --- UTILITY ---------- Large Storage Unit Seismic Detector > --- WEAPON ----------- Assault Rifle Light Assault Rifle > --- INVENTORY -------- Ion Engine Light Ion Engine Light Nuclear Core Wheel Wheel Heat Sink Improved Heat Sink Medium Storage Unit Huge Storage Unit Sensor Array Improved Terrain Scanner Propulsion Shielding Light Assault Rifle Light Assault Rifle Grenade Launcher [Rating: 9] Favorites ----------- Power Ion Engine Engine Ion Engine Propulsion Light Treads Treads Light Treads Wheel Wheel Utility Seismic Detector Device Seismic Detector Storage Large Storage Unit Protection Propulsion Shielding Weapon Assault Rifle Ballistic Gun Assault Rifle Launcher Grenade Launcher Build | -11 -10 -10 ------- Run | Yrd Mat Min Slots Evolved . | . . . Power . | . . . Propulsion . | . . . Utility . | . . . Weapon . | . . . Parts Attached 15 | 6 8 1 Power 1 | 1 . . Engine 1 | 1 . . Core . | . . . Reactor . | . . . Propulsion 3 | 2 1 . Treads 2 | 2 . . Leg . | . . . Wheel 1 | . 1 . Hover . | . . . Flight . | . . . Utility 4 | 1 2 1 Device 1 | . 1 . Storage 2 | 1 1 . Processor . | . . . Hackware . | . . . Protection 1 | . . 1 Artifact . | . . . Weapon 7 | 2 5 . Energy Gun . | . . . Energy Cannon . | . . . Ballistic Gun 5 | 2 3 . Ballistic Cannon . | . . . Launcher 2 | . 2 . Special Weapon . | . . . Impact Weapon . | . . . Slashing Weapon . | . . . Piercing Weapon . | . . . Special Melee Weapon . | . . . Unidentified Prototypes . | . . . Parts Lost 1 | . . 1 Power . | . . . Propulsion . | . . . Utility . | . . . Weapon 1 | . . 1 Highest Loss Streak 1 | . . 1 To Critical Strikes . | . . . Average Backups 10 | 4 12 15 Power 1 | . 1 2 Propulsion 1 | 1 2 2 Utility 3 | . 4 5 Weapon 3 | 1 3 6 Tool/Special . | . . . Unused Backups 17 | . 6 11 Power 3 | . 1 2 Propulsion 2 | . 1 1 Utility 7 | . 3 4 Weapon 5 | . 1 4 Tool/Special . | . . . Average Slot Usage (%) 100 | . 100 100 Engine 14 | . 14 14 Treads 26 | . 27 14 Wheel 1 | . . 14 Device 13 | . 14 7 Storage 14 | . 14 14 Ballistic Gun 27 | . 27 14 Peak Build Rating 9 | 6 9 9 Average Rating 7 | 5 8 9 On Entrance 5 | . 6 9 Avg Prop Armor Cover (%) 11 | . 11 11 Naked Turns . | . . . Heaviest Build 31 | 13 31 31 Greatest Support 40 | 40 40 10 Greatest Overweight (x) 3 | . 3 3 Average Overweight (x) . | . . 3 Largest Inventory Capacity 15 | 8 15 15 Average Capacity 12 | 7 14 15 Most Carried 15 | 6 15 15 Average Carried 10 | 4 12 15 Final Capacity 15 | 8 15 15 Final Carried 15 | 6 15 15 Class Distribution -------------------- 100% | Mutant Dominant Class ---------------- Mutant | -10/Materials Mutant | -10/Mines Resources | -11 -10 -10 ----------- Run | Yrd Mat Min Matter Collected 421 | 336 85 . Remotely . | . . . Salvage Created 346 | 183 163 . Parts 35 | 16 18 1 Haulers Intercepted . | . . . Recyclers Shooed . | . . . Parts Field Recycled . | . . . Retrieved Matter . | . . . Parts Self-Destructed . | . . . Prevented . | . . . Parts Restored . | . . . Kills | -11 -10 -10 ------- Run | Yrd Mat Min Combat Hostiles Destroyed 8 | . 8 . Guns 6 | . 6 . AOE 2 | . 2 . Classes Destroyed 6 | 3 2 1 Worker 2 | 2 . . Builder 1 | . . 1 Tunneler 4 | 4 . . Recycler 1 | 1 . . Swarmer 6 | . 6 . Grunt 2 | . 2 . Best Kill Streak 3 | 3 3 1 Combat Bots Only 3 | . 3 . Max Kills in Single Turn 2 | 1 2 1 Gunslinging . | . . . Exploded 2 | . 2 . Melee . | . . . Uniques/NPCs Destroyed . | . . . Combat | -11 -10 -10 -------- Run | Yrd Mat Min Hostile Shots Fired 42 | . 28 14 Missed 5 | . 5 . Hits 37 | . 23 14 Projectile 37 | . 23 14 AOE 14 | . . 14 Critical Strikes 1 | . 1 . Damage Taken 719 | . 190 529 Core 253 | . 23 230 Absorbed by Shields . | . . . Redirected to Shielding 44 | . . 44 Core Remaining (%) 100 | 100 . . Volleys Fired 44 | 19 18 7 Largest 2 | 2 2 1 Hottest 40 | 40 40 30 Shots Fired 80 | 38 35 7 Gun 72 | 38 34 . Cannon . | . . . Launcher 8 | . 1 7 Special . | . . . Kinetic 72 | 38 34 . Thermal . | . . . Explosive 8 | . 1 7 Electromagnetic . | . . . Robot Hit Streak 19 | 10 19 6 Robot Miss Streak 3 | 3 3 . Penetration Max . | . . . Secondary Targets . | . . . Shots Hit Robots 54 | 23 25 6 Core Hits 34 | 11 12 11 Critical Kills . | . . . Critical Parts Destroyed 1 | . 1 . Critical Strikes 1 | . 1 . Destroy 1 | . 1 . Melee Attacks . | . . . Impact . | . . . Slashing . | . . . Piercing . | . . . Sneak Attacks . | . . . Combat Hostiles . | . . . Follow-up Attacks . | . . . Damage Inflicted 778 | 262 374 142 Guns 537 | 262 275 . Cannons . | . . . Explosions 241 | . 99 142 Melee . | . . . Ramming . | . . . Kinetic 537 | 262 275 . Thermal . | . . . Explosive 241 | . 99 142 Electromagnetic . | . . . Impact . | . . . Slashing . | . . . Piercing . | . . . Highest Corruption . | . . . Average Corruption . | . . . Corruption Purged . | . . . Corruption Blocked . | . . . Overload Shots . | . . . Overflow Damage . | . . . Projectiles . | . . . Explosions . | . . . Melee . | . . . Knockbacks . | . . . Impact . | . . . Kinetic . | . . . Secondary . | . . . Self-Inflicted Damage 2 | . 2 . Shots 1 | . 1 . Rammed . | . . . Targets Rammed . | . . . Kicked . | . . . Crushed . | . . . Highest Temperature 1 | . 1 . Average Temperature 1 | . 1 . Received Heat Transfer 48 | . 48 . Siege Activations . | . . . Martial Activations . | . . . Shielding Activations . | . . . Robots Disrupted . | . . . Combat Hostiles . | . . . Robots Corrupted . | . . . Combat Hostiles . | . . . Parts Fried . | . . . Impact Corruptions . | . . . Robots Melted . | . . . Combat Hostiles . | . . . Parts Melted . | . . . Heat Transferred . | . . . Parts Sabotaged . | . . . Parts Stolen . | . . . Parts Stripped . | . . . Power Chain Reactions . | . . . Alert | -11 -10 -10 ------- Run | Yrd Mat Min Maximum Alert Level . | . . . Low Security (%) 100 | 100 100 100 Level 1 . | . . . Level 2 . | . . . Level 3 . | . . . Level 4 . | . . . Level 5 . | . . . High Security . | . . . Max Security . | . . . Peak Influence 73 | 15 73 19 Initial 15 | . . 15 Average 14 | 1 18 11 Influence Increases 339 | 35 287 17 Destroy 0b10 Robot/C 160 | . 160 . Destroy 0b10 Robot/NC 40 | 35 . 5 Destroy Leader 30 | . 30 . Successful Hack 34 | . 34 . Select Force Hacks 30 | . 30 . Destroy Structure 15 | . 3 12 Lose Combat Pursuer 30 | . 30 . Influence Decreases 339 | 35 248 56 Entered New Map 24 | . . 24 Time Decay 293 | 35 248 10 Lost Part 10 | . . 10 Lost Ally 12 | . . 12 Squads Dispatched 1 | . 1 . Investigation 1 | . 1 . Extermination . | . . . Reinforcement . | . . . Assault . | . . . Garrison . | . . . Intercept . | . . . Searches Triggered . | . . . Construction Impeded . | . . . Haulers Reinforced . | . . . Active Scanning Responses . | . . . Cargo Convoy Interrupts . | . . . Stealth | -11 -10 -10 --------- Run | Yrd Mat Min Distress Signals 1 | . 1 . Communications Jammed . | . . . Distress Signals . | . . . Times Spotted 15 | . 12 3 Peak Tracking Total 4 | . 4 2 Tactical Retreats 2 | . 2 . Traps | -11 -10 -10 ------- Run | Yrd Mat Min Traps Triggered . | . . . Indirectly . | . . . Trap Hack Attempts . | . . . Triggered . | . . . Disarmed . | . . . Reprogrammed . | . . . Reused . | . . . Traps Extracted . | . . . Installed . | . . . Triggered . | . . . Machines | -11 -10 -10 ---------- Run | Yrd Mat Min Machines Disabled . | . . . Max in Single Turn . | . . . Machines Repaired . | . . . Machines Dismantled . | . . . Machines Sabotaged . | . . . Overloaded Fab Kills . | . . . Hacking | -11 -10 -10 --------- Run | Yrd Mat Min Machines Accessed 7 | . 7 . Terminals 4 | . 4 . Fabricators . | . . . Repair Stations 1 | . 1 . Recycling Units 2 | . 2 . Scanalyzers . | . . . Garrison Access . | . . . Total Hacks 23 | . 23 . Successful 12 | . 12 . Failed 10 | . 10 . Catastrophic 1 | . 1 . Database Lockouts 1 | . 1 . Manual 17 | . 17 . Terminals 18 | . 18 . Fabricators . | . . . Repair Stations 1 | . 1 . Recycling Units 4 | . 4 . Scanalyzers . | . . . Garrison Access . | . . . Terminal Hacks 7 | . 7 . Part Schematic 1 | . 1 . Robot Analysis 3 | . 3 . Prototype ID Bank 1 | . 1 . Locate Traps 1 | . 1 . Hauler Manifests 1 | . 1 . Fabricator Hacks . | . . . Repair Station Hacks . | . . . Recycling Unit Hacks 1 | . 1 . Retrieve Components 1 | . 1 . Scanalyzer . | . . . Garrison Access Hacks . | . . . Unauthorized Hacks 4 | . 4 . Terminals 2 | . 2 . Botnet 2 | . 2 . Fabricators . | . . . Repair Stations 1 | . 1 . Mechanics 1 | . 1 . Recycling Units 1 | . 1 . Tunnel 1 | . 1 . Scanalyzers . | . . . Garrison Access . | . . . Data Cores Recovered . | . . . Used . | . . . Hacking Detections 5 | . 5 . Full Trace Events . | . . . Feedback Events . | . . . Feedback Blocked . | . . . Robot Schematics Acquired . | . . . Robots Built . | . . . Authchips . | . . . Time . | . . . Total Robot Build Rating . | . . . Part Schematics Acquired 1 | . 1 . Parts Built . | . . . Authchips . | . . . Time . | . . . Total Part Build Rating . | . . . Part Studies Acquired . | . . . Parts Repaired . | . . . Time . | . . . Parts Recycled . | . . . Recycled Matter . | . . . Retrieved Matter . | . . . Retrieved Components 3 | . 3 . Parts Scanalyzed . | . . . Part Schematics Acquired . | . . . Parts Damaged . | . . . Bothacking | -11 -10 -10 ------------ Run | Yrd Mat Min Used RIF Installer . | . . . Robots Hacked . | . . . Non-combat . | . . . Combat . | . . . Robot Hacks Applied . | . . . Relay Couplers Released . | . . . Fabnet Peak Effective % . | . . . Robots Rewired . | . . . Allies Hacked . | . . . Hacks Repelled . | . . . Allies | -11 -10 -10 -------- Run | Yrd Mat Min Total Allies 1 | . . 1 Largest Group 1 | . . 1 Highest-Rated Group 31 | . . 31 Highest-Rated Ally 31 | . . 31 Total Orders . | . . . Ally Attacks 1 | . . 1 Total Damage 21 | . . 21 Kills . | . . . Allies Corrupted . | . . . Allies Melted . | . . . Intel | -11 -10 -10 ------- Run | Yrd Mat Min Active Infowar (turns) 871 | . 854 17 Seismic 871 | . 854 17 Robot Analysis Total 3 | . 3 . Derelict Logs Recovered . | . . . Drone Launches . | . . . Drone Recoveries . | . . . Exploration | -11 -10 -10 ------------- Run | Yrd Mat Min Turns Passed 1153 | 266 854 33 Spaces Moved 619 | 130 475 14 Core 10 | 10 . . Treads 569 | 120 449 . Legs . | . . . Wheels 40 | . 26 14 Hover . | . . . Flight . | . . . Fastest Speed 50 | 50 110 125 Average Speed 155 | 151 157 125 Slowest Speed 160 | 160 160 125 Overloaded Moves . | . . . Propulsion Burnouts . | . . . Robots Hopped . | . . . Potential Cave-ins . | . . . Cave-ins Triggered . | . . . Exploration Rate (%) 31 | 8 78 9 Regions Visited 2 Branch Regions 1 Pre-discovered Areas 1 | . 1 . Known Exits Taken . | . . . Unknown Exits Taken 2 | 1 1 . Scrap Searched . | . . . Spaces Dug . | . . . Terrain Destroyed 20 | . 3 17 Melee . | . . . Projectile . | . . . AOE 20 | . 3 17 Terrain Rammed . | . . . Walls Destroyed . | . . . Machines Disabled . | . . . Actions | -11 -10 -10 --------- Run | Yrd Mat Min Total 739 | 163 554 22 Wait 22 | . 22 . Move 617 | 129 474 14 Hop . | . . . Pick Up 29 | 9 20 . Fast Attach 3 | 3 . . Attach 4 | 3 1 . Detach . | . . . Swap 8 | . 7 1 Drop 12 | . 12 . Fire 44 | 19 18 7 Melee . | . . . Ram . | . . . Kick . | . . . Crush . | . . . Escape Stasis . | . . . Rewire . | . . . Trap . | . . . Miscellaneous . | . . . Route ------- -11/Scrapyard -10/Materials (discovered 3 exits: [*Mat x2] / [*Min]) -10/Mines History --------- Turn | Location | Event 9 | -11/Scrapyard | Discovered new exit (range 15) 267 | -11/Scrapyard | Entered Materials 307 | -10/Materials | Build established: Mutant 408 | -10/Materials | Discovered new exit (range 5) 503 | -10/Materials | Discovered new exit (range 13) 558 | -10/Materials | Central database locked down 969 | -10/Materials | Discovered new exit (range 15) 1121 | -10/Materials | Entered Mines 1122 | -10/Mines | Assembled infested the area 1124 | -10/Mines | Received a Mining Laser from a helpful Derelict 1146 | -10/Mines | Core integrity fell below 50% 1151 | -10/Mines | Core integrity fell below 20% 1154 | -10/Mines | Destroyed by D-53 Grenadier with Mini Grenade Launcher Last Messages --------------- "What are you doing alone down here?" 01122_ ALERT: Infestation in the mines, dispatching Demolisher response squad. 01124_ Z8-4AR(g): "And why aren't you carrying a mining laser?! Certainly you don't want THEM to uncover you when the ceiling comes crashing down? Here, take my spare." 01127_ Z8-4AR(g): "You're apparently new around these parts, I'll cover you." 01139_ C-45 Heavy ARC bursts open, deploying its payload. 01139_ D-53 Grenadier unfolds itself. 01142_ The unstable cave ceiling collapses. 01144_ Z8-4AR(g): "Mining lasers are a lot more useful than you might think..." 01144_ Z8-4AR(g) destroyed. 01145_ The unstable cave ceiling collapses. 01147_ U-05 Engineer lays Concrete. 01152_ U-05 Engineer destroyed. 01154_ Grenade Launcher destroyed. Map ----- +----------------------------------------------------+ | ?????????????????????????????????????????????????? | | ?????????????????????????????????????????????????? | | ?????????????????????????????????????????????????? | | ?????????????????????????????????????????????????? | | ?????????????????????????????????????????????????? | | ?????????????????????????????????????????????????? | | ?????????????????????????????????????????????????? | | ?????????????????????????????????????????????????? | | ?????????????????????????????????????????????????? | | ?????????????????????????????????????????????????? | | ?????????????????????????????????????????????????? | | ?????????????????????????????????????????????????? | | ?????????????????????????????????????????????????? | | ?????????????????????????????????????????????????? | | ?????????????????????????????????????????????????? | | ??????????????????????#??????????????????????????? | | ????????????????? ???? #?????????????????????????? | | ?????????????????? ?? #????????????????????????? | | ??????????????????? ##??????????????????????? | | ???????????????????# """ ##?????????????????????? | | ???????????????????# """ ##????????????????????? | | ??????????????????## """ ##?????? ?????????? | | ?????????????????## #### ?????????? | | ?????????????????# ????????? | | ?????????????????# ????????? | | ??????????????????#?# @ d ????????? | | ??????????????????# # d ! % #????????? | | ??????????????????# #?????????? | | ??????????????????### #?????????? | | ????????????????????## # ?????????? | | ????????????????????# # # ### ## ###??????????? | | ????????????????????# #?###??? #???????????????? | | ????????????????????##| ##???????#???????????????? | | ?????????????????????# #???????????????????????? | | ?????????????????????# #??????????????????????? | | ?????????????????????# #?????????????????????? | | ?????????????????????## #?????????????????????? | | ??????????????????????## ##?????????????????????? | | ????????????????????????###??????????????????????? | | ?????????????????????????????????????????????????? | | ?????????????????????????????????????????????????? | | ?????????????????????????????????????????????????? | | | | | | | | | | | | | | | | | +----------------------------------------------------+ Best States ------------- Heat Dissipation 25 Energy Generation 5 Energy Capacity 250 Matter Stores 300 Matter Capacity 300 Sight Range 16 Terrain Scan Density 10 Propulsion Shielding 33 Evasion (%) 40 Recoil Reduction 2 Item Schematics ----------------- Hcp. Storage Unit | -10/Materials | Hacked Robot Schematics ------------------ None Fabricated ------------ Nothing Repaired ---------- Nothing Studied --------- None Alien Tech Used ----------------- None Achievements -------------- None Challenges ------------ None Game ------ Seed SlugProtonMultirail Manual? 0 Play Time 00:13:58 Cumulative 258.8 hours Start 2025.11.17 @ 20:59:48 End 2025.11.21 @ 19:59:08 Sessions 2 Manual Loads 0 Difficulty Rogue Special Mode None Game No. 160 Rogue 156 Adventurer 4 Explorer 0 Win Type - Total 7 Types 6/0/1/0/0/0/0/0/0/0 Lore% 85 Gallery% 73 Achievement% 45 Wizard Run 0 Options --------- Layout 1 ASCII 0 Keyboard 1 Movement Vi Keybinds 1 Fullscreen 2 Font 24/Smallcaps Map View 50x35 Zoom Use 0% Tactical HUD 1 Map Filters NONE Filters NONE Steam 1 RUN: e6cf5d2e-3dfd-49d1-89ad-1ebd85710729